fUSD/lending_fUSD_20260701
["ID","MTS","AMOUNT","RATE_DAILY","PERIOD"]
[426825290,1782911442000,-279.09768425,0.0002557,2]
[426825235,1782911442000,-159.83355658,0.00025564,2]
[426825240,1782911442000,-435.10258683,0.00025564,2]
[426825237,1782911442000,-295.68716751,0.00025564,2]
[426825239,1782911442000,-267.36793826,0.00025564,2]
[426825238,1782911442000,-518.15057521,0.00025564,2]
[426825246,1782911442000,-467.19866515,0.00025565,2]
[426825245,1782911442000,-363.95234133,0.00025565,2]
[426825247,1782911442000,-152.68139763,0.00025565,2]
[426825242,1782911442000,-299.69975987,0.00025565,2]
[426825243,1782911442000,-156.84655209,0.00025565,2]
[426825241,1782911442000,-349.41115742,0.00025564,2]
[426825244,1782911442000,-556.42934318,0.00025565,2]
[426825248,1782911442000,-649.55404,0.00025566,2]
[426825250,1782911442000,-510.33315688,0.00025566,2]
[426825260,1782911442000,-185.61728128,0.00025566,2]
[426825249,1782911442000,-400.38213015,0.00025566,2]
[426825251,1782911442000,-170.49849039,0.00025566,2]
[426825253,1782911442000,-238.23840175,0.00025566,2]
[426825252,1782911442000,-476.69766608,0.00025566,2]
[426825254,1782911442000,-584.23874281,0.00025566,2]
[426825257,1782911442000,-493.66407266,0.00025566,2]
[426825255,1782911442000,-241.0989831,0.00025566,2]
[426825259,1782911442000,-333.01785677,0.00025566,2]
[426825258,1782911442000,-221.85579058,0.00025566,2]
[426825256,1782911442000,-207.68744181,0.00025566,2]
[426825261,1782911442000,-222.86913611,0.00025566,2]
[426825263,1782911442000,-339.68335645,0.00025566,2]
[426825286,1782911442000,-191.15041856,0.0002557,2]
[426825297,1782911442000,-446.31730081,0.0002557,2]
[426825295,1782911442000,-465.60956253,0.0002557,2]
[426825330,1782911442000,-282.00976537,0.00025804,2]
[426825327,1782911442000,-1362.0,0.000258,2]
[426825328,1782911442000,-1278.0,0.000258,2]
[426825325,1782911442000,-150.0,0.000258,2]
[426825326,1782911442000,-150.0,0.000258,2]
[426825332,1782911442000,-1898.70137339,0.00025857,2]
[426825337,1782911442000,-517.05243255,0.00025982,2]
[426825340,1782911442000,-3393.56542574,0.00025996,2]
[426825343,1782911442000,-4619.33748163,0.00026,2]
[426825336,1782911442000,-160.0,0.0002596,3]
[426825339,1782911442000,-152.0,0.00025992,6]
[426825335,1782911442000,-3818.0,0.00025909,2]
[426825320,1782911442000,-208.03,0.00025764,2]
[426825338,1782911442000,-613.70327117,0.0002599,2]
[426825334,1782911442000,-1700.0,0.000259,9]
[426825341,1782911442000,-154.77411264,0.00025997,7]
[426825342,1782911442000,-1137.01882491,0.00026,2]
[426825345,1782911442000,-27045.33809314,0.00026,2]
[426825344,1782911442000,-221.03991219,0.00026,2]
[426825349,1782911442000,-224.0,0.00026,2]
[426825346,1782911442000,-13602.25062841,0.00026,2]
[426825347,1782911442000,-200.20605016,0.00026,2]
[426825289,1782911442000,-241.89612764,0.0002557,2]
[426825351,1782911442000,-202.85,0.00026027,7]
[426825350,1782911442000,-240.01,0.00026027,7]
[426825352,1782911442000,-496.75296727,0.00026034,2]
[426825333,1782911442000,-227.91704626,0.00025857,2]
[426825324,1782911442000,-1300.0,0.000258,9]
[426825348,1782911442000,-285.0,0.00026,2]
[426825322,1782911442000,-306.33308616,0.00025799,10]
[426825323,1782911442000,-917514.40936759,0.000258,2]
[426825291,1782911442000,-151.36387169,0.0002557,2]
[426825306,1782911442000,-6652.06679603,0.00025578,2]
[426825304,1782911442000,-550.40385876,0.0002557,2]
[426825296,1782911442000,-489.20466946,0.0002557,2]
[426825305,1782911442000,-396.65793614,0.0002557,2]
[426825307,1782911442000,-1898.70137339,0.00025583,2]
[426825300,1782911442000,-470.6342611,0.0002557,2]
[426825301,1782911442000,-529.93581164,0.0002557,2]
[426825299,1782911442000,-537.3318732,0.0002557,2]
[426825298,1782911442000,-517.57934784,0.0002557,2]
[426825302,1782911442000,-190.97133202,0.0002557,2]
[426825308,1782911442000,-13602.25062841,0.00025667,2]
[426825303,1782911442000,-547.33322406,0.0002557,2]
[426825311,1782911442000,-150.0,0.00025675,7]
[426825310,1782911442000,-155.08622043,0.00025674,2]
[426825321,1782911442000,-10000.0,0.00025793,2]
[426825316,1782911442000,-496.75296727,0.00025701,2]
[426825317,1782911442000,-5970.0,0.00025753,2]
[426825314,1782911442000,-176.10334246,0.000257,2]
[426825329,1782911442000,-202.77367824,0.00025804,2]
[426825313,1782911442000,-5528.0,0.000257,3]
[426825318,1782911442000,-412.0,0.00025755,2]
[426825315,1782911442000,-530.25200251,0.000257,2]
[426825331,1782911442000,-160.0,0.0002584,3]
[426825312,1782911442000,-401.62895546,0.00025699,2]
[426825319,1782911442000,-151.0,0.0002576,7]
[426825309,1782911442000,-412.0,0.00025672,2]
[426825392,1782911443000,-637.066752,0.00026121,2]
[426825394,1782911443000,-524.11673614,0.00026121,2]
[426825382,1782911443000,-421.94735018,0.0002608,2]
[426825390,1782911443000,-690.86743362,0.00026121,2]
[426825387,1782911443000,-319.66711317,0.00026121,2]
[426825384,1782911443000,-1159.49917879,0.0002608,2]
[426825388,1782911443000,-655.32552121,0.00026121,2]
[426825389,1782911443000,-591.37433501,0.00026121,2]
[426825383,1782911443000,-369.75887702,0.0002608,2]
[426825386,1782911443000,-517.05243255,0.00026091,2]
[426825385,1782911443000,-517.05243255,0.00026084,2]
[426825399,1782911443000,-545.92851199,0.00026121,2]
[426825397,1782911443000,-874.9035267,0.00026121,2]
[426825396,1782911443000,-313.69310418,0.00026121,2]
[426825395,1782911443000,-599.39951974,0.00026121,2]
[426825398,1782911443000,-741.9057909,0.00026121,2]
[426825400,1782911443000,-622.93155353,0.00026121,2]
[426825401,1782911443000,-305.36279525,0.00026121,2]
[426825402,1782911443000,-866.07205333,0.00026122,2]
[426825403,1782911443000,-174.24912983,0.00026122,2]
[426825404,1782911443000,-600.57319523,0.00026122,2]
[426825391,1782911443000,-534.73587653,0.00026121,2]
[426825393,1782911443000,-652.65388024,0.00026121,2]
[426825381,1782911443000,-414.03400714,0.0002608,2]
[426825410,1782911443000,-476.4768035,0.00026122,2]
[426825372,1782911443000,-390.93011144,0.0002608,2]
[426825355,1782911443000,-169.88202936,0.0002608,2]
[426825357,1782911443000,-161.49319466,0.0002608,2]
[426825353,1782911443000,-386.88308409,0.0002608,2]
[426825354,1782911443000,-401.00854429,0.0002608,2]
[426825358,1782911443000,-171.81838776,0.0002608,2]
[426825359,1782911443000,-265.8947183,0.0002608,2]
[426825366,1782911443000,-587.31450317,0.0002608,2]
[426825365,1782911443000,-165.94267455,0.0002608,2]
[426825360,1782911443000,-214.04621816,0.0002608,2]
[426825363,1782911443000,-317.25532407,0.0002608,2]
[426825371,1782911443000,-396.4856489,0.0002608,2]
[426825362,1782911443000,-301.76185416,0.0002608,2]
[426825368,1782911443000,-169.30789619,0.0002608,2]
[426825361,1782911443000,-331.9250412,0.0002608,2]
[426825374,1782911443000,-168.9331364,0.0002608,2]
[426825380,1782911443000,-1375.97063001,0.0002608,2]
[426825369,1782911443000,-356.69719386,0.0002608,2]
[426825370,1782911443000,-365.22292494,0.0002608,2]
[426825373,1782911443000,-161.74318187,0.0002608,2]
[426825379,1782911443000,-166.54028833,0.0002608,2]
[426825375,1782911443000,-223.04909276,0.0002608,2]
[426825377,1782911443000,-312.44332042,0.0002608,2]
[426825367,1782911443000,-609.64995804,0.0002608,2]
[426825407,1782911443000,-635.59688811,0.00026122,2]
[426825364,1782911443000,-165.427374,0.0002608,2]
[426825408,1782911443000,-439.98491294,0.00026122,2]
[426825435,1782911443000,-416.79151321,0.00026126,2]
[426825438,1782911443000,-324.20917551,0.00026126,2]
[426825437,1782911443000,-751.88329979,0.00026126,2]
[426825439,1782911443000,-564.95305276,0.00026126,2]
[426825445,1782911443000,-558.30438325,0.00026126,2]
[426825441,1782911443000,-197.9482334,0.00026126,2]
[426825443,1782911443000,-655.44972761,0.00026126,2]
[426825442,1782911443000,-638.8081161,0.00026126,2]
[426825450,1782911443000,-627.02106923,0.00026126,2]
[426825449,1782911443000,-382.30083712,0.00026126,2]
[426825434,1782911443000,-863.97646823,0.00026126,2]
[426825447,1782911443000,-453.13623667,0.00026126,2]
[426825440,1782911443000,-357.82491973,0.00026126,2]
[426825444,1782911443000,-361.61074383,0.00026126,2]
[426825446,1782911443000,-720.37547697,0.00026126,2]
[426825448,1782911443000,-306.93214607,0.00026126,2]
[426825453,1782911443000,-558.19536851,0.00026126,2]
[426825452,1782911443000,-1056.67475561,0.00026126,2]
[426825454,1782911443000,-302.72774339,0.00026126,2]
[426825456,1782911443000,-623.92379914,0.00026126,2]
[426825455,1782911443000,-883.95931205,0.00026126,2]
[426825457,1782911443000,-579.11525006,0.00026126,2]
[426825451,1782911443000,-1391.58940844,0.00026126,2]
[426825436,1782911443000,-654.03262393,0.00026126,2]
[426825409,1782911443000,-778.98499041,0.00026122,2]
[426825432,1782911443000,-409.53907709,0.00026126,2]
[426825433,1782911443000,-412.04842883,0.00026126,2]
[426825405,1782911443000,-680.44420917,0.00026122,2]
[426825411,1782911443000,-482.1979662,0.00026122,2]
[426825413,1782911443000,-658.21876355,0.00026122,2]
[426825412,1782911443000,-216.20803639,0.00026122,2]
[426825415,1782911443000,-499.52678516,0.00026122,2]
[426825414,1782911443000,-443.71158115,0.00026122,2]
[426825421,1782911443000,-846.15762717,0.00026122,2]
[426825424,1782911443000,-160.44055944,0.00026122,2]
[426825425,1782911443000,-157.45251489,0.00026122,2]
[426825420,1782911443000,-714.24759855,0.00026122,2]
[426825406,1782911443000,-420.34905332,0.00026122,2]
[426825417,1782911443000,-445.73827223,0.00026122,2]
[426825419,1782911443000,-509.52503467,0.00026122,2]
[426825422,1782911443000,-350.67787861,0.00026122,2]
[426825423,1782911443000,-233.35700752,0.00026122,2]
[426825426,1782911443000,-413.28117366,0.00026122,2]
[426825418,1782911443000,-439.42180102,0.00026122,2]
[426825427,1782911443000,-164.42709443,0.00026125,2]
[426825428,1782911443000,-390.46357457,0.00026125,2]
[426825429,1782911443000,-500.22059652,0.00026125,2]
[426825431,1782911443000,-471.54196841,0.00026125,2]
[426825416,1782911443000,-371.23456256,0.00026122,2]
[426825430,1782911443000,-340.99698078,0.00026125,2]
[426825491,1782911444000,-2337.0,0.0002648,3]
[426825489,1782911444000,-1008.57,0.00026453,7]
[426825496,1782911444000,-683.34,0.000265,7]
[426825484,1782911444000,-155.08622043,0.00026382,2]
[426825488,1782911444000,-227.91704626,0.00026405,2]
[426825485,1782911444000,-705.82713726,0.00026397,2]
[426825480,1782911444000,-5528.0,0.000263,5]
[426825490,1782911444000,-160.0,0.0002648,3]
[426825487,1782911444000,-1898.70137339,0.00026405,2]
[426825492,1782911444000,-2935.0,0.00026493,10]
[426825499,1782911444000,-279.0,0.00026521,2]
[426825495,1782911444000,-50000.0,0.000265,2]
[426825494,1782911444000,-310.37325831,0.000265,7]
[426825498,1782911444000,-927.6,0.00026521,7]
[426825500,1782911444000,-155.13942,0.0002653,2]
[426825505,1782911444000,-517.05243255,0.00026621,2]
[426825504,1782911444000,-881.65,0.00026618,7]
[426825508,1782911444000,-1449.37397349,0.00026635,2]
[426825502,1782911444000,-517.05243255,0.0002653,2]
[426825483,1782911444000,-517.05243255,0.00026367,2]
[426825493,1782911444000,-255866.74975624,0.000265,2]
[426825481,1782911444000,-517.05243255,0.00026346,2]
[426825473,1782911444000,-517.05243255,0.00026132,2]
[426825479,1782911444000,-151.0,0.00026296,2]
[426825463,1782911444000,-690.10579712,0.00026126,2]
[426825462,1782911444000,-716.4424976,0.00026126,2]
[426825461,1782911444000,-669.47595122,0.00026126,2]
[426825458,1782911444000,-620.81275005,0.00026126,2]
[426825460,1782911444000,-733.80700418,0.00026126,2]
[426825459,1782911444000,-855.5772734,0.00026126,2]
[426825465,1782911444000,-706.58108219,0.00026126,2]
[426825466,1782911444000,-381.94266403,0.00026126,2]
[426825464,1782911444000,-627.51234813,0.00026126,2]
[426825467,1782911444000,-454.41089174,0.00026126,2]
[426825482,1782911444000,-496.75296727,0.00026367,2]
[426825468,1782911444000,-729.77763208,0.00026126,2]
[426825506,1782911444000,-762.06244755,0.00026635,2]
[426825469,1782911444000,-733.87181168,0.00026126,2]
[426825471,1782911444000,-594.9869042,0.00026126,2]
[426825472,1782911444000,-1898.70137339,0.00026131,2]
[426825474,1782911444000,-200.0,0.00026135,2]
[426825476,1782911444000,-176.10334244,0.000262,2]
[426825486,1782911444000,-28083.41450692,0.000264,2]
[426825475,1782911444000,-390.0,0.00026197,5]
[426825477,1782911444000,-530.2520025,0.000262,2]
[426825478,1782911444000,-517.05243255,0.00026281,2]
[426825470,1782911444000,-627.81246708,0.00026126,2]
[426825507,1782911444000,-1719.96328752,0.00026635,2]
[426825497,1782911444000,-517.05243255,0.00026505,2]
[426825501,1782911444000,-155.13942,0.0002653,2]
[426825537,1782911444000,-912.2220401,0.00026683,2]
[426825535,1782911444000,-862.6322464,0.00026683,2]
[426825541,1782911444000,-837.2630566,0.000267,2]
[426825539,1782911444000,-567.41,0.00026698,2]
[426825534,1782911444000,-776.01593756,0.00026683,2]
[426825542,1782911444000,-11109.47065424,0.000267,2]
[426825540,1782911444000,-400.0,0.000267,9]
[426825543,1782911444000,-176.10334244,0.000267,2]
[426825538,1782911444000,-917.3397646,0.00026683,2]
[426825554,1782911444000,-881820.13984336,0.000268,2]
[426825536,1782911444000,-812.34872139,0.00026683,2]
[426825545,1782911444000,-530.2520025,0.000267,2]
[426825555,1782911444000,-151.0,0.000268,2]
[426825544,1782911444000,-496.75296727,0.000267,2]
[426825547,1782911444000,-231.47446705,0.0002676,2]
[426825546,1782911444000,-517.05243255,0.00026754,2]
[426825503,1782911444000,-2200.0,0.000266,9]
[426825548,1782911444000,-321.92570903,0.0002676,2]
[426825552,1782911444000,-382842.59908188,0.000268,2]
[426825550,1782911444000,-627.72161164,0.0002679,2]
[426825551,1782911444000,-1311.82822868,0.000268,15]
[426825556,1782911444000,-1356219.54455245,0.000268,2]
[426825553,1782911444000,-3346335.96815532,0.000268,2]
[426825533,1782911444000,-779.90474893,0.00026683,2]
[426825549,1782911444000,-627.72161164,0.0002679,2]
[426825526,1782911444000,-817.54077992,0.00026683,2]
[426825528,1782911444000,-798.51014513,0.00026683,2]
[426825509,1782911444000,-169.92317586,0.00026666,2]
[426825512,1782911444000,-1016.26970918,0.00026677,2]
[426825511,1782911444000,-849.90994802,0.00026677,2]
[426825515,1782911444000,-643.24718745,0.00026678,5]
[426825520,1782911444000,-684.0,0.00026678,5]
[426825518,1782911444000,-1021.0,0.00026678,5]
[426825514,1782911444000,-778.66444191,0.00026677,2]
[426825510,1782911444000,-863.58429202,0.00026677,2]
[426825516,1782911444000,-1051.0,0.00026678,5]
[426825517,1782911444000,-677.0,0.00026678,5]
[426825513,1782911444000,-927.38223863,0.00026677,2]
[426825522,1782911444000,-1898.70137339,0.00026679,2]
[426825527,1782911444000,-178.91245986,0.00026683,2]
[426825530,1782911444000,-1739.48676054,0.00026683,2]
[426825523,1782911444000,-973.73123801,0.00026679,2]
[426825519,1782911444000,-151.0,0.00026678,5]
[426825525,1782911444000,-939.85412474,0.00026683,2]
[426825524,1782911444000,-822.77345444,0.00026679,2]
[426825521,1782911444000,-1082.59006666,0.00026678,2]
[426825531,1782911444000,-1320.84344452,0.00026683,2]
[426825532,1782911444000,-781.49414795,0.00026683,2]
[426825529,1782911444000,-819.31215951,0.00026683,2]
[426825561,1782911445000,-741.6757196,0.00017991,2]
[426825560,1782911445000,-2699.27188851,0.00017991,2]
[426825559,1782911445000,-1022.35,0.00017991,2]
[426825557,1782911445000,-1308.99425367,0.000268,2]
[426825558,1782911445000,-252.71561091,0.000268,2]
[426825564,1782911446000,-5364.54228745,0.00017991,2]
[426825562,1782911446000,-1234.14048746,0.000179,2]
[426825563,1782911446000,-1845.73322012,0.000179,2]
[426825565,1782911446000,-3079.87370753,0.00019157,2]
[426825567,1782911446000,-2498.31801705,0.00019235,2]
[426825566,1782911446000,-5576.33995875,0.00019235,2]
[426825573,1782911450000,-522.07404573,0.00019235,2]
[426825574,1782911450000,-1215.37608533,0.00019235,2]
[426825583,1782911532000,775.0,0.00030136,30]
[426825582,1782911532000,189.46,0.00030136,30]
[426825587,1782911598000,189.46,0.00030136,30]
[426825589,1782911681000,706.64,0.00027397,90]
[426825596,1782911749000,3900.44,0.00029712,30]
[426825598,1782911750000,309.10358977,0.00026882,120]
[426825597,1782911750000,208.88194204,0.00026882,120]
[426825606,1782911811000,500.0,0.00030136,30]
[426825605,1782911811000,500.0,0.00030136,30]
[426825604,1782911811000,500.0,0.00030136,30]
[426825608,1782911812000,500.0,0.00030136,30]
[426825607,1782911812000,500.0,0.00030136,30]
[426825616,1782911994000,927.6,0.00026678,30]
[426825617,1782912000000,881.65,0.00026678,30]
[426825623,1782912040000,500.0,0.00030136,30]
[426825622,1782912040000,500.0,0.00030136,30]
[426825621,1782912040000,500.0,0.00030136,30]
[426825627,1782912150000,232.71,0.00028019,30]
[426825630,1782912423000,300.0,0.0003,30]
[426825633,1782912440000,200.0,0.000295,30]
[426825636,1782912540000,2000.0,0.00030135,30]
[426825638,1782912541000,2000.0,0.0002849,60]
[426825637,1782912541000,2000.0,0.00030133,120]
[426825644,1782912604000,300.0,0.000182,30]
[426825659,1782912633000,500.0,0.00030136,30]
[426825759,1782912634000,-185.05924715,0.00015985,2]
[426825686,1782912634000,-250.0,0.0001562,2]
[426825683,1782912634000,-161.43298018,0.00015595,2]
[426825689,1782912634000,-500.0,0.00015981,2]
[426825684,1782912634000,-109.90701982,0.00015595,2]
[426825680,1782912634000,-67.03438407,0.00015182,2]
[426825688,1782912634000,-879.49428416,0.00015784,2]
[426825685,1782912634000,-600.0,0.0001562,2]
[426825682,1782912634000,-150.99,0.00015438,2]
[426825690,1782912634000,-500.0,0.00015981,2]
[426825692,1782912634000,-500.0,0.00015981,2]
[426825695,1782912634000,-500.0,0.00015981,2]
[426825691,1782912634000,-500.0,0.00015981,2]
[426825698,1782912634000,-500.0,0.00015981,2]
[426825696,1782912634000,-500.0,0.00015981,2]
[426825699,1782912634000,-500.0,0.00015981,2]
[426825700,1782912634000,-500.0,0.00015981,2]
[426825687,1782912634000,-500.0,0.0001562,2]
[426825681,1782912634000,-150.0,0.00015336,2]
[426825679,1782912634000,-1114.38880936,0.00015182,2]
[426825677,1782912634000,-8305.78,0.00015,2]
[426825758,1782912634000,-2758.71,0.00015982,2]
[426825663,1782912634000,-250.0,0.00014202,2]
[426825666,1782912634000,-129.63,0.00014209,2]
[426825662,1782912634000,-195.63,0.000142,2]
[426825664,1782912634000,-600.0,0.00014204,2]
[426825665,1782912634000,-20.37,0.00014209,2]
[426825667,1782912634000,-658.97333302,0.00014217,2]
[426825669,1782912634000,-150.0,0.000145,2]
[426825668,1782912634000,-150.0,0.00014358,2]
[426825671,1782912634000,-150.0,0.00014642,2]
[426825672,1782912634000,-49.01180088,0.00014785,2]
[426825673,1782912634000,-225.98819912,0.00014785,2]
[426825670,1782912634000,-546.84144671,0.00014638,2]
[426825674,1782912634000,-2270.217583,0.00014893,2]
[426825676,1782912634000,-1207.92,0.00015,2]
[426825675,1782912634000,-192.22711404,0.00015,2]
[426825678,1782912634000,-1221.34,0.00015017,2]
[426825694,1782912634000,-500.0,0.00015981,2]
[426825693,1782912634000,-500.0,0.00015981,2]
[426825697,1782912634000,-500.0,0.00015981,2]
[426825702,1782912634000,-500.0,0.00015981,2]
[426825730,1782912634000,-500.0,0.00015981,2]
[426825701,1782912634000,-500.0,0.00015981,2]
[426825744,1782912634000,-500.0,0.00015981,2]
[426825746,1782912634000,-500.0,0.00015981,2]
[426825754,1782912634000,-500.0,0.00015981,2]
[426825745,1782912634000,-500.0,0.00015981,2]
[426825743,1782912634000,-57.53075285,0.00015981,2]
[426825753,1782912634000,-500.0,0.00015981,2]
[426825747,1782912634000,-500.0,0.00015981,2]
[426825748,1782912634000,-500.0,0.00015981,2]
[426825749,1782912634000,-500.0,0.00015981,2]
[426825750,1782912634000,-500.0,0.00015981,2]
[426825752,1782912634000,-500.0,0.00015981,2]
[426825751,1782912634000,-500.0,0.00015981,2]
[426825755,1782912634000,-500.0,0.00015981,2]
[426825756,1782912634000,-550.0,0.00015981,2]
[426825757,1782912634000,-500.0,0.00015981,2]
[426825732,1782912634000,-517.35688867,0.00015981,2]
[426825734,1782912634000,-500.0,0.00015981,2]
[426825742,1782912634000,-442.46924715,0.00015981,2]
[426825741,1782912634000,-500.0,0.00015981,2]
[426825704,1782912634000,-500.0,0.00015981,2]
[426825715,1782912634000,-500.0,0.00015981,2]
[426825718,1782912634000,-500.0,0.00015981,2]
[426825728,1782912634000,-500.0,0.00015981,2]
[426825706,1782912634000,-500.0,0.00015981,2]
[426825713,1782912634000,-500.0,0.00015981,2]
[426825720,1782912634000,-500.0,0.00015981,2]
[426825711,1782912634000,-500.0,0.00015981,2]
[426825709,1782912634000,-500.0,0.00015981,2]
[426825724,1782912634000,-500.0,0.00015981,2]
[426825736,1782912634000,-500.0,0.00015981,2]
[426825737,1782912634000,-500.0,0.00015981,2]
[426825738,1782912634000,-500.0,0.00015981,2]
[426825739,1782912634000,-626.57399898,0.00015981,2]
[426825726,1782912634000,-500.0,0.00015981,2]
[426825740,1782912634000,-500.0,0.00015981,2]
[426825722,1782912634000,-500.0,0.00015981,2]
[426825766,1782912635000,-150.0,0.00016096,2]
[426825767,1782912635000,-2171.45,0.00016116,2]
[426825764,1782912635000,-536.39943722,0.00016035,2]
[426825763,1782912635000,-2799.96056278,0.00016035,2]
[426825762,1782912635000,-2500.8741,0.00016016,2]
[426825760,1782912635000,-760.78075285,0.00015985,2]
[426825768,1782912635000,-723.14,0.00016139,2]
[426825761,1782912635000,-216.0,0.00016,2]
[426825770,1782912635000,-1652.90856278,0.00016216,2]
[426825765,1782912635000,-343.33,0.00016044,2]
[426825772,1782912635000,-274.586909,0.00016216,2]
[426825769,1782912635000,-550.0,0.00016215,2]
[426825774,1782912635000,-2648.49689355,0.00016216,2]
[426825773,1782912635000,-7229.02546749,0.00016216,2]
[426825775,1782912635000,-278.52586619,0.00016216,2]
[426825777,1782912635000,-802.27054973,0.00016216,2]
[426825776,1782912635000,-499.25889863,0.00016216,2]
[426825778,1782912635000,-200.0,0.00016288,2]
[426825779,1782912635000,-73.15945027,0.00016385,2]
[426825771,1782912635000,-467.29685263,0.00016216,2]
[426825798,1782912637000,-246.67,0.00016705,2]
[426825797,1782912637000,-2276.34,0.00016702,2]
[426825802,1782912637000,-945.84,0.00017184,2]
[426825805,1782912637000,-2957.48,0.00017353,2]
[426825793,1782912637000,-802.97385118,0.00016385,2]
[426825804,1782912637000,-935.0,0.00017334,2]
[426825803,1782912637000,-900.0,0.00017197,2]
[426825795,1782912637000,-500.0,0.00016498,2]
[426825799,1782912637000,-161.81,0.00016712,2]
[426825800,1782912637000,-945.84,0.00016784,2]
[426825796,1782912637000,-299.71,0.00016659,2]
[426825794,1782912637000,-69.70669855,0.00016385,2]
[426825806,1782912637000,-500.0,0.00017376,2]
[426825801,1782912637000,-1000.0,0.00016801,2]
[426825811,1782912637000,-302.5839,0.00017668,2]
[426825813,1782912637000,-500.0,0.00017767,2]
[426825815,1782912637000,-5.74059855,0.00017767,2]
[426825814,1782912637000,-494.25940145,0.00017767,2]
[426825812,1782912637000,-223.88,0.00017708,2]
[426825809,1782912637000,-191.11,0.00017645,2]
[426825816,1782912637000,-500.0,0.00017767,2]
[426825807,1782912637000,-500.0,0.00017553,2]
[426825808,1782912637000,-945.84,0.00017583,2]
[426825810,1782912637000,-603.93,0.00017645,2]
[426825859,1782912638000,-500.0,0.00018499,2]
[426825858,1782912638000,-500.0,0.00018499,2]
[426825867,1782912638000,-195.55456642,0.000188,2]
[426825868,1782912638000,-166.74695704,0.000188,2]
[426825856,1782912638000,-31120.31678821,0.00018434,2]
[426825844,1782912638000,-346.07,0.00018,2]
[426825847,1782912638000,-161.61,0.0001812,2]
[426825843,1782912638000,-60000.0,0.0001799,2]
[426825860,1782912638000,-1236.0,0.00018534,2]
[426825852,1782912638000,-500.0,0.00018355,2]
[426825846,1782912638000,-343.33,0.0001805,2]
[426825857,1782912638000,-2479.47711714,0.00018467,2]
[426825849,1782912638000,-750.0,0.000182,2]
[426825865,1782912638000,-166.66,0.00018626,2]
[426825861,1782912638000,-900.0,0.00018567,2]
[426825862,1782912638000,-166.74695704,0.000186,2]
[426825866,1782912638000,-250.0,0.00018763,2]
[426825863,1782912638000,-254.88123404,0.000186,2]
[426825870,1782912638000,-8431.61796094,0.000188,2]
[426825872,1782912638000,-166.74695704,0.00019,2]
[426825871,1782912638000,-500.0,0.00018956,2]
[426825869,1782912638000,-254.88123404,0.000188,2]
[426825873,1782912638000,-254.88123404,0.00019,2]
[426825874,1782912638000,-8431.61796094,0.00019,2]
[426825876,1782912638000,-1500.0,0.00019027,2]
[426825877,1782912638000,-1500.0,0.00019027,2]
[426825845,1782912638000,-311.58,0.00018016,2]
[426825864,1782912638000,-8431.61796094,0.000186,2]
[426825854,1782912638000,-153.58,0.00018391,2]
[426825839,1782912638000,-2000.0,0.00017768,2]
[426825853,1782912638000,-81155.05,0.00018356,2]
[426825875,1782912638000,-1500.0,0.00019027,2]
[426825817,1782912638000,-394.08274625,0.00017767,2]
[426825822,1782912638000,-500.0,0.00017768,2]
[426825819,1782912638000,-500.0,0.00017767,2]
[426825821,1782912638000,-500.0,0.00017767,2]
[426825820,1782912638000,-523.97814626,0.00017767,2]
[426825818,1782912638000,-327.02596246,0.00017767,2]
[426825823,1782912638000,-3000.0,0.00017768,2]
[426825826,1782912638000,-3000.0,0.00017768,2]
[426825824,1782912638000,-3000.0,0.00017768,2]
[426825825,1782912638000,-3000.0,0.00017768,2]
[426825827,1782912638000,-3000.0,0.00017768,2]
[426825829,1782912638000,-3000.0,0.00017768,2]
[426825855,1782912638000,-151.0,0.0001841,2]
[426825828,1782912638000,-3000.0,0.00017768,2]
[426825836,1782912638000,-3000.0,0.00017768,2]
[426825840,1782912638000,-15205.3988,0.0001789,2]